[Event "FRA-ch Teams Top 16-B 2022"]
[Site "Chartres"]
[Date "2022.06.09"]
[Round "1.27"]
[White "Hamitevici, Vladimir"]
[Black "Moussard, Jules"]
[Result "0-1"]
[ECO "D36"]
[WhiteElo "2482"]
[BlackElo "2651"]
[Annotator "TA"]
[PlyCount "74"]
[EventDate "2022.06.09"]
[EventType "team-tourn"]
[EventCountry "FRA"]
[SourceTitle "playchess.com"]
[Source "ChessBase"]
[SourceQuality "1"]
[TimeControl "40/5400+30:1800+30"]

{[%evp 18,74,23,13,20,31,18,21,21,22,17,0,61,50,51,3,3,0,0,0,0,-86,-45,-70,-52,-69,0,0,0,0,0,-22,-16,-47,-42,-162,-88,-376,-363,-466,-466,-837,-835,-1210,-1112,-1081,-1141,-29976,-29979,-29979,-1694,-29978,-29975,-29983,-29984,-29982,-1231,-29980,-1200]} 1. c4 {[%emt 0:00:12]} e6 {[%emt 0:00:44]} 2. Nc3 {[%emt 0:00:57]} d5 {[%emt 0:00:07]} 3. d4 {[%emt 0:00:26]} Nf6 {[%emt 0:00:08]} 4. cxd5 {[%emt 0:00:21]} exd5 {[%emt 0:00:09]} 5. Bg5 {[%emt 0:00:38]} c6 {[%emt 0:00:08]} 6. e3 {[%emt 0:00:45]} h6 {[%emt 0:00:10]} 7. Bh4 {[%emt 0:00:34]} Be7 {[%emt 0:00:08]} 8. Qc2 {[%emt 0:03:48]} O-O {[%emt 0:01:24]} 9. Bd3 {[%emt 0:01:23]} Re8 {[%emt 0:00:12]} 10. Nge2 {[%emt 0:03:29]} a5 {[%emt 0:01:05] D36: Queen's Gambit Declined: Exchange Variation: Main line (5 Bg5 c6 6 Qc2).} 11. O-O {[%emt 0:03:23]} Na6 {[%emt 0:00:03][%cal Bb8a6,Ba6c7,Bc7e6][%mdl 32]} 12. a3 {[%emt 0:00:18] Prevents Nb4.} Nc7 {[%emt 0:00:19] The position is equal.} 13. Rae1 {[%emt 0:04:17]} Ne6 {[%emt 0:03:45]} 14. f3 {[%emt 0:07:19]} c5 {[%emt 0:07:26] [#]} (14... b5 $11) 15. Bb5 $146 {[%emt 0:05:45]} ({Predecessor:} 15. dxc5 Bxc5 16. Bf2 Bd7 17. Qd2 Bc6 18. Nd4 Nxd4 19. exd4 Be7 20. Kh1 Qd7 21. g4 {0-1 (45) Andrieux,P-Descroix,G France 1990}) 15... Bd7 {[%emt 0:18:39]} 16. Qa4 {[%emt 0:04:24]} (16. Bxd7 $14 Qxd7 17. dxc5) 16... Nc7 $11 {[%emt 0:12:52]} 17. Bxd7 {[%emt 0:13:26]} Nxd7 {[%emt 0:00:34]} 18. Bg3 {[%emt 0:01:45]} Nb6 {[%emt 0:04:42]} 19. Bxc7 {[%emt 0:06:32]} (19. Qb3 $11 Ne6 20. Nf4) 19... Qxc7 $17 {[%emt 0:00:47]} 20. Qb5 {[%emt 0:00:02]} Bd6 {[%emt 0:03:36]} (20... Qc6 $5 {[%cal Rb6c4]}) 21. Kf2 {[%emt 0:00:29]} (21. dxc5 Bxc5 22. Kh1 Rxe3 $17) 21... Re7 {[%emt 0:06:07]} (21... Qe7 22. Ng3 Qc7 23. Nf5 $11) (21... Qc6 $15) 22. Rc1 $11 {[%emt 0:04:52]} Rae8 {[%emt 0:03:22]} 23. e4 {[%emt 0:01:06]} dxe4 {[%emt 0:07:20]} 24. fxe4 {[%emt 0:03:08]} (24. Nxe4 $5 {[%cal Rd4c5]} Nd5 25. g3 $11) 24... Qc6 {[%emt 0:01:06]} (24... Bxh2 25. dxc5 Nd7 26. g3 $16 (26. Nd5 Qe5 $15)) 25. Qd3 {[%emt 0:19:35]} Qd7 {[%emt 0:07:06]} 26. d5 {[%emt 0:02:04] [#]} (26. Rfd1 $1 $15) 26... f5 {[%emt 0:01:18]} ({Reject} 26... Bxh2 $6 27. g3 $11) ({And not} 26... Qg4 27. Kg1 $15) ({Black should play} 26... c4 $1 $19 {[%cal Rc4d3]} 27. Qh3 f5) 27. exf5 $2 {[%emt 0:00:57][%mdl 8192] White does not recover from this.} (27. Kg1 $17) 27... c4 $19 {[%emt 0:00:42]} 28. Qd4 {[%emt 0:06:26]} Qc7 {[%emt 0:02:23]} (28... Na4 $2 29. Qg4 Bxh2 30. Nd4 (30. d6 $2 Qxd6 31. Qxc4+ Kh7 $19) 30... Nxb2 31. g3 $19) 29. Kf3 {[%emt 0:03:41]} (29. Qg4 $142 Nxd5 30. Kg1 (30. Nxd5 $2 Qc5+ 31. Nd4 Re4 $19)) 29... Bc5 {[%emt 0:00:07]} 30. Qf4 {[%emt 0:00:11]} Re3+ {[%emt 0:00:04]} 31. Kg4 {[%emt 0:00:14]} Bd6 {[%emt 0:02:12]} 32. Qf2 {[%emt 0:01:16]} h5+ {[%emt 0:00:50][%mdl 64] [#] Decoy} 33. Kxh5 {[%emt 0:01:19]} Qf7+ {[%emt 0:00:03]} 34. Kg4 {[%emt 0:01:28]} Nd7 {[%emt 0:00:08]} 35. g3 {[%emt 0:00:42]} Nf6+ {[%emt 0:00:04]} 36. Kh3 {[%emt 0:00:31]} Qh5+ {[%emt 0:00:04]} 37. Kg2 {[%emt 0:00:07]} Rxe2 {[%emt 0:00:10] Weighted Error Value: White=1.12/Black=0.09 (flawless)} (37... Ng4 $142 38. Kg1 Nxf2 39. Rxf2 Rxe2 40. Nxe2 Rxe2 41. Rxc4 Re1+ 42. Rf1 Rxf1+ 43. Kxf1 Qf3+ 44. Kg1 Qe3+ 45. Kh1 Qe1+ 46. Kg2 Qe2+ 47. Kh3 Qxc4 48. Kg2 Qe2+ 49. Kh3 Kh7 50. f6 gxf6 51. b3 f5 52. b4 Be7 53. bxa5 Qf1#) 0-1

[Event "FRA-ch Teams Top 16-B 2022"]
[Site "Chartres"]
[Date "2022.06.09"]
[Round "1.28"]
[White "Gozzoli, Yannick"]
[Black "Philippe, Christophe"]
[Result "1-0"]
[ECO "E11"]
[WhiteElo "2591"]
[BlackElo "2379"]
[Annotator "TA"]
[PlyCount "111"]
[EventDate "2022.06.09"]
[EventType "team-tourn"]
[EventCountry "FRA"]
[SourceTitle "playchess.com"]
[Source "ChessBase"]
[SourceQuality "1"]
[TimeControl "40/5400+30:1800+30"]

{[%evp 15,111,36,40,24,43,62,47,55,90,71,93,35,52,23,29,22,62,32,22,0,6,0,8,0,46,0,2,13,22,-25,0,0,0,0,-13,0,0,0,0,0,0,-33,107,90,102,110,103,115,149,118,131,118,143,89,117,106,126,128,129,113,118,83,213,210,278,268,433,435,427,425,890,884,864,764,2125,1907,5922,5928,6370,2712,5540,6283,5481,5177,2732,2267,29969,359,29970,29972,29968,29973,29973,29972,29972,29972,29972,29972]} 1. d4 {[%emt 0:00:06]} Nf6 {[%emt 0:00:15]} 2. c4 {[%emt 0:00:21]} e6 {[%emt 0:00:45]} 3. Nf3 {[%emt 0:00:07]} Bb4+ {[%emt 0:00:33]} 4. Bd2 {[%emt 0:01:01]} Qe7 {[%emt 0:00:07]} 5. g3 {[%emt 0:00:05]} Nc6 {[%emt 0:02:57]} 6. Nc3 {[%emt 0:03:30]} O-O {[%emt 0:02:26]} 7. Bg2 {[%emt 0:00:24]} d6 {[%emt 0:08:41]} 8. O-O {[%emt 0:04:31]} a5 {[%emt 0:03:24]} 9. Rc1 {[%emt 0:08:15] E11: Bogo-Indian.} h6 {[%emt 0:09:39]} 10. a3 {[%emt 0:21:59]} Bxc3 {[%emt 0:00:10]} 11. Bxc3 {[%emt 0:00:04] White is slightly better.} a4 {[%emt 0:02:20]} 12. d5 {[%emt 0:01:14]} Nb8 {[%emt 0:09:11] [#]} 13. Nd4 $146 {[%emt 0:05:27]} (13. dxe6 $16 Bxe6 14. Nd4) ({Predecessor:} 13. dxe6 fxe6 14. c5 d5 15. Ne5 Re8 16. Qd4 Nc6 17. Nxc6 bxc6 18. f4 Nd7 19. Kh1 {1-0 (81) Asaka,S (2254)-Endrina,J (1629) Tokyo 2021}) 13... e5 $14 {[%emt 0:06:54]} 14. Nb5 {[%emt 0:01:08]} Ne8 {[%emt 0:05:19]} 15. Bb4 {[%emt 0:01:32]} b6 {[%emt 0:04:52]} 16. Nc3 {[%emt 0:05:49] 0x0.001aa0da4efedp-1022s more active pieces.} Bd7 {[%emt 0:02:47]} 17. c5 {[%emt 0:03:05]} bxc5 {[%emt 0:04:11] [#]} 18. Bxc5 {[%emt 0:00:12]} f5 {[%emt 0:07:34][%cal Bf7f5,Bf5f4][%mdl 32]} (18... dxc5 19. d6 cxd6 20. Bxa8 $16) 19. Be3 {[%emt 0:01:02]} g5 {[%emt 0:04:14]} (19... Nf6 $11) 20. Bd2 {[%emt 0:01:02]} Nf6 {[%emt 0:02:23]} 21. Qc2 {[%emt 0:05:56]} Kg7 {[%emt 0:03:09]} 22. Nd1 {[%emt 0:03:27]} (22. e3 $142) 22... Na6 $11 {[%emt 0:00:12]} 23. Ne3 {[%emt 0:00:05]} f4 {[%emt 0:01:21]} 24. Nf5+ {[%emt 0:06:10]} Bxf5 {[%emt 0:00:03]} 25. Qxf5 {[%emt 0:26:28]} Nc5 {[%emt 0:02:02][%cal Of6e4] ...Nfe4! is the strong threat.} 26. Qc2 {[%emt 0:00:00] Against Nfe4} (26. gxf4 $2 {[#]} Nfe4 $1 {[%mdl 512]} 27. Bxe4 Rxf5 28. Bxf5 gxf4 $19) 26... Rf7 {[%emt 0:02:26]} 27. Rcd1 {[%emt 0:00:00]} Raf8 {[%emt 0:01:13]} 28. Bc3 {[%emt 0:00:00]} (28. e3 $5 {[%cal Re3f4]}) 28... Qd7 {[%emt 0:03:48] [#]} (28... h5 $15 {stays ahead.}) 29. Bxe5 $1 $16 {[%emt 0:00:00][%mdl 512]} dxe5 {[%emt 0:00:34]} 30. Qxc5 {[%emt 0:00:00]} Rb8 {[%emt 0:01:35]} 31. Rd2 {[%emt 0:00:00]} Rb6 {[%emt 0:02:20]} 32. Rfd1 {[%emt 0:00:00]} Rd6 {[%emt 0:09:05]} 33. Qb4 {[%emt 0:00:00]} h5 {[%emt 0:00:00]} 34. Rd3 {[%emt 0:00:00]} (34. e3 $142) 34... Re7 {[%emt 0:00:00]} 35. e4 {[%emt 0:00:00]} Rb6 {[%emt 0:00:00]} 36. Qd2 {[%emt 0:00:00]} Ne8 {[%emt 0:00:00]} 37. gxf4 {[%emt 0:00:00]} gxf4 {[%emt 0:00:00]} 38. Bh3 {[%emt 0:00:00]} Rg6+ {[%emt 0:00:00] Black cannot hold the game after this.} (38... Qb5 $16) 39. Kh1 $18 {[%emt 0:00:00]} Qd8 {[%emt 0:02:26]} 40. Bf5 {[%emt 0:00:00]} Rg5 {[%emt 0:00:07] [#]} (40... Rb6 {might work better.} 41. Rh3 Nf6 42. Rg1+ Kf8) 41. Rg3 $3 {[%emt 0:38:00][%mdl 512]} Rxg3 {[%emt 0:01:46]} 42. fxg3 {[%emt 0:00:00][%cal Bf2g3,Bg3f4][%mdl 32]} Nd6 {[%emt 0:03:17]} (42... Qd6 $142 43. Be6 Kh7 44. gxf4 exf4) 43. gxf4 {[%emt 0:00:00]} Nxf5 {[%emt 0:01:41]} 44. exf5 {[%emt 0:00:00][%mdl 4096] Endgame Threatens to win with Rg1+. KQR-KQR} Qd6 {[%emt 0:01:13]} 45. Rg1+ {[%emt 0:00:00]} Kf7 {[%emt 0:00:31]} 46. Qg2 {[%emt 0:00:00] Threatening mate with Qg8+.} Ke8 {[%emt 0:00:14]} 47. Qg8+ {[%emt 0:00:00]} Kd7 {[%emt 0:00:04]} 48. Rg7 {[%emt 0:00:00]} Rxg7 {[%emt 0:05:34]} 49. Qxg7+ {[%emt 0:00:00] KQ-KQ} Kc8 {[%emt 0:00:02]} 50. Qxe5 {[%emt 0:00:00]} Qc5 {[%emt 0:00:17]} 51. Qe8+ {[%emt 0:00:00]} Kb7 {[%emt 0:00:07]} 52. Qc6+ {[%emt 0:00:00] White mates.} ({And not} 52. Qe5 Qf2 53. h4 (53. h3 Qf1+ 54. Kh2 Qf2+ 55. Kh1 Qf1+ 56. Kh2 Qf2+ 57. Kh1 $11) 53... Qf1+ 54. Kh2 Qf2+ 55. Kh3 Qf3+ 56. Kh2 Qf2+ 57. Kh1 (57. Kh3 Qf3+ 58. Kh2 Qf2+ $11) 57... Qf1+ 58. Kh2 Qf2+ $11) 52... Qxc6 {[%emt 0:00:06]} 53. dxc6+ {[%emt 0:00:00]} Kxc6 {[%emt 0:00:09]} 54. Kg2 {[%emt 0:00:00]} Kd6 {[%emt 0:00:20]} 55. Kf3 {[%emt 0:00:00]} Ke7 {[%emt 0:00:06]} 56. f6+ {[%emt 0:00:00] Weighted Error Value: White=0.12 (very precise) /Black=0.49} 1-0

[Event "FRA-ch Teams Top 16-B 2022"]
[Site "Chartres"]
[Date "2022.06.09"]
[Round "1.29"]
[White "Savina, Anastasia"]
[Black "Cornette, Matthieu"]
[Result "1-0"]
[ECO "E94"]
[WhiteElo "2348"]
[BlackElo "2570"]
[Annotator "TA"]
[PlyCount "147"]
[EventDate "2022.06.09"]
[EventType "team-tourn"]
[EventCountry "FRA"]
[SourceTitle "playchess.com"]
[Source "ChessBase"]
[SourceQuality "1"]
[TimeControl "40/5400+30:1800+30"]

{[%evp 16,147,49,43,53,55,50,37,37,26,58,45,49,6,13,-52,-44,-29,-36,-29,-22,-43,-51,-42,-19,-122,-61,-47,-16,-22,-33,-31,0,-45,-14,0,0,0,0,0,-9,-2,-11,-29,-25,-56,-64,-54,0,0,14,18,125,75,96,52,87,93,81,80,191,185,204,218,235,141,119,83,204,42,45,29,29,29,29,29,29,29,29,29,29,29,260,252,249,249,216,219,368,361,368,368,588,504,602,595,1016,1042,29975,29976,29976,29977,29976,29977,29969,5438,5473,5381,5023,5081,4010,4275,1035,595,29964,29964,29964,29964,29966,29967,29970,29964,29976,29976,29980,29973,29972,29973,29982,29983,29983,29984,29983,29978]} 1. d4 {[%emt 0:00:06]} Nf6 {[%emt 0:00:26]} 2. c4 {[%emt 0:00:06]} g6 {[%emt 0:00:15]} 3. Nc3 {[%emt 0:00:11]} Bg7 {[%emt 0:00:14]} 4. e4 {[%emt 0:04:23]} d6 {[%emt 0:00:22]} 5. Be2 {[%emt 0:01:03]} O-O {[%emt 0:00:16]} 6. Nf3 {[%emt 0:00:05]} Nbd7 {[%emt 0:01:18]} 7. O-O {[%emt 0:02:38]} e5 {[%emt 0:00:12]} 8. Be3 {[%emt 0:00:09]} Qe7 {[%emt 0:00:33]} 9. d5 {[%emt 0:03:29]} Ng4 {[%emt 0:02:57] 9...c5 deserves study. E94: King's Indian: Classical: 6 Be2 e5 7 0-0: Various Black 7th moves.} 10. Bg5 {[%emt 0:01:04]} f6 {[%emt 0:00:35][%cal Bf7f6,Bf6f5][%mdl 32]} 11. Bd2 {[%emt 0:02:09]} Nh6 {[%emt 0:08:10] White is slightly better.} 12. b4 {[%emt 0:04:27]} Nf7 {[%emt 0:01:44]} 13. Nb5 {[%emt 0:19:14]} Qd8 {[%emt 0:03:31][%cal Oa7a5] [#]} 14. Rc1 $146 {[%emt 0:22:41]} ({Predecessor:} 14. Ne1 a6 15. Nc3 f5 16. f3 Qh4 17. Be3 Nf6 18. Bf2 Qh6 19. c5 Ng5 20. Qc2 fxe4 21. fxe4 {0-1 (40) Yuferov,S-Petkevich,J Kiev 1967}) 14... f5 {[%emt 0:12:06]} 15. c5 {[%emt 0:13:56]} (15. Nc3 $11) 15... a6 {[%emt 0:04:57]} 16. Nc3 {[%emt 0:11:00]} dxc5 {[%emt 0:03:02]} 17. bxc5 {[%emt 0:01:27]} Nxc5 {[%emt 0:00:55]} 18. exf5 {[%emt 0:04:52]} gxf5 {[%emt 0:01:16]} 19. Be3 {[%emt 0:00:08]} Nd7 {[%emt 0:03:22]} 20. Qc2 {[%emt 0:01:27]} (20. d6 $11 cxd6 21. Bc4) 20... Nf6 {[%emt 0:09:54]} (20... f4 $1 $17 {[%cal Rf4e3]} 21. Bd2 Nc5) 21. Rfd1 $15 {[%emt 0:01:28][%cal Od5d6]} Ng4 {[%emt 0:07:06]} 22. Bc5 {[%emt 0:01:56]} Nd6 {[%emt 0:00:06]} 23. h3 {[%emt 0:00:42]} Nh6 {[%emt 0:00:06]} (23... e4 $5 {[%cal Re4f3]} 24. hxg4 exf3 25. Bxf3 (25. gxf3 h5 $17) 25... fxg4 $15) 24. Ba3 {[%emt 0:03:49]} Bd7 {[%emt 0:07:28]} 25. Na4 {[%emt 0:00:30]} Bxa4 {[%emt 0:01:40]} 26. Qxa4 {[%emt 0:00:30]} Nhf7 {[%emt 0:30:59]} 27. Rc2 {[%emt 0:00:30]} Rc8 {[%emt 0:00:00]} 28. Rdc1 {[%emt 0:00:30]} Re8 {[%emt 0:00:00]} 29. Bc5 {[%emt 0:00:30]} Bh6 {[%emt 0:01:30]} 30. Rd1 {[%emt 0:00:30]} Qf6 {[%emt 0:00:00]} 31. Ba3 {[%emt 0:00:30][%cal Bc5a3,Ba3b2,Bb2a1][%mdl 32]} Red8 {[%emt 0:00:00]} ({Black should try} 31... e4 $15 32. Bb2 Qg6) 32. Bb2 $11 {[%emt 0:00:30][%cal Of3e5]} Ne4 {[%emt 0:00:00]} 33. Qb3 {[%emt 0:00:00]} b5 {[%emt 0:00:00]} (33... Qb6 $1 $11 {remains equal.} 34. Qxb6 cxb6) 34. Rc6 {[%emt 0:00:22]} (34. Bd3 $142) 34... Rd6 $16 {[%emt 0:00:00]} 35. a4 {[%emt 0:00:22]} bxa4 {[%emt 0:01:56]} 36. Qxa4 {[%emt 0:00:03]} (36. Qb7 $6 Qd8 37. Bxe5 (37. Nxe5 Rb8 $11) 37... Nxe5 38. Nxe5 Bf4 $11) 36... Rb8 {[%emt 0:00:37]} 37. Ba1 {[%emt 0:00:38] This bishop pair is nice.} Bf8 {[%emt 0:00:39]} (37... Qe7 $16 {is a better defense.}) 38. Rxc7 $18 {[%emt 0:00:29]} Rdb6 {[%emt 0:01:18]} 39. Rc6 {[%emt 0:00:53]} Bd6 {[%emt 0:00:00]} 40. Rxb6 {[%emt 0:00:38]} (40. Bxa6 Nc5 41. Qa5 Nb3 $16) 40... Rxb6 {[%emt 0:01:00]} 41. Rc1 {[%emt 0:31:05]} ({Stronger than} 41. Bxa6 Bc5 42. Qe8+ Kg7 43. Nxe5 Rxa6 44. Nxf7 Bxf2+ 45. Kf1 Rxa1 $15) 41... Qh6 {[%emt 0:30:30] [#]} (41... Rb8 $16) 42. Qe8+ $2 {[%emt 0:00:30]} (42. Rc8+ $1 $18 Bf8 43. Qc2 (43. Nxe5 $2 Rb1+ 44. Bf1 Qd2 $19)) 42... Kg7 $14 {[%emt 0:00:00]} 43. Rd1 {[%emt 0:00:00][%cal Rf3e5]} Qf4 {[%emt 0:00:00] Threatens to win with ...Bc5.} 44. g3 {[%emt 0:00:00]} Nxg3 {[%emt 0:00:00]} 45. fxg3 {[%emt 0:00:00]} Qxg3+ {[%emt 0:00:00]} 46. Kh1 {[%emt 0:00:00] Strongly threatening Rg1.} Qxh3+ {[%emt 0:00:00]} 47. Nh2 {[%emt 0:00:00] Threatening mate with Rg1+.} Rb3 {[%emt 0:00:00] aiming for ...Rg3.} 48. Bh5 $36 {[%emt 0:01:43][%mdl 2048] Black is under pressure. The board is on fire.} ({But not} 48. Rg1+ Rg3 49. Rxg3+ Qxg3 $17) 48... Qxh5 {[%emt 0:00:00] White stays focused until the end.} (48... Rg3 $1 $11 {and Black has nothing to worry.} 49. Qxf7+ Kh6) 49. Rg1+ $18 {[%emt 0:00:04]} Qg6 {[%emt 0:00:00]} 50. Rxg6+ {[%emt 0:00:09]} hxg6 {[%emt 0:00:00] [#]} 51. Qa4 $1 {[%emt 0:00:36][%csl LRa6,LRb3]} Rd3 {[%emt 0:00:00]} (51... Ra3 $142 52. Qd1 a5) 52. Qxa6 {[%emt 0:01:25]} Rxd5 {[%emt 0:00:00]} 53. Nf3 {[%emt 0:00:07]} g5 {[%emt 0:00:00]} (53... Rc5 {was worth a try.} 54. Bb2 Rc2) 54. Kg2 {[%emt 0:01:11] Hoping for Qb7.} Kf6 {[%emt 0:03:23]} 55. Bc3 {[%emt 0:00:41]} g4 {[%emt 0:00:42]} 56. Nh4 {[%emt 0:00:11]} Kg5 {[%emt 0:02:10]} 57. Qb7 {[%emt 0:00:33][%csl LRd5,LRf7]} Rd3 {[%emt 0:00:27]} 58. Qxf7 {[%emt 0:00:32]} Rxc3 {[%emt 0:00:53]} 59. Qg6+ {[%emt 0:00:41]} Kf4 {[%emt 0:00:01]} 60. Qxf5+ {[%emt 0:00:30]} (60. Qxd6 $142 Rc2+ 61. Kf1 Rc1+ 62. Ke2 Rc2+ 63. Kd3 Rb2 64. Qh6+ Kg3 65. Nxf5+ Kg2 66. Ne3+ Kg1 67. Nxg4) 60... Ke3 {[%emt 0:00:04]} 61. Qg5+ {[%emt 0:00:33]} Ke4 {[%emt 0:01:05]} 62. Qxg4+ {[%emt 0:00:10]} Kd5 {[%emt 0:00:10]} 63. Qg8+ {[%emt 0:00:43]} Kc6 {[%emt 0:00:58]} 64. Nf5 {[%emt 0:00:29] White wants to mate with Qe6.} Bc7 {[%emt 0:00:20]} 65. Qa8+ {[%emt 0:00:34] White mates.} Kb5 {[%emt 0:00:37]} 66. Qb7+ {[%emt 0:00:22]} Ka4 {[%emt 0:00:02] [#]} 67. Ne3 $1 {[%emt 0:00:34][%mdl 512]} Ba5 {[%emt 0:00:31]} (67... Rc5 68. Kf3) 68. Qe4+ {[%emt 0:00:23]} Ka3 {[%emt 0:00:14]} 69. Nc4+ {[%emt 0:00:27]} Kb4 {[%emt 0:00:01]} 70. Nd2+ {[%emt 0:00:49]} Kb5 {[%emt 0:00:19]} 71. Qxe5+ {[%emt 0:00:24]} Ka6 {[%emt 0:00:09]} 72. Ne4 {[%emt 0:00:25]} Rc2+ {[%emt 0:00:22]} 73. Kf3 {[%emt 0:00:03]} Bb6 {[%emt 0:00:08]} 74. Qd5 {[%emt 0:00:36] Weighted Error Value: White=0.23 (precise) /Black=0.49} 1-0

[Event "FRA-ch Teams Top 16-B 2022"]
[Site "Chartres"]
[Date "2022.06.09"]
[Round "1.30"]
[White "Pelletier, Yannick"]
[Black "Nezar, Mustapha"]
[Result "1-0"]
[ECO "A11"]
[WhiteElo "2556"]
[BlackElo "2357"]
[Annotator "TA"]
[PlyCount "87"]
[EventDate "2022.06.09"]
[EventType "team-tourn"]
[EventCountry "FRA"]
[SourceTitle "playchess.com"]
[Source "ChessBase"]
[SourceQuality "1"]
[TimeControl "40/5400+30:1800+30"]

{[%evp 13,87,21,21,21,18,23,27,34,24,17,37,34,50,49,92,92,92,90,85,92,100,108,92,88,55,59,95,92,110,117,125,31,90,90,90,90,82,90,168,143,165,168,238,233,314,287,606,479,452,444,591,443,685,595,620,263,695,633,770,770,922,906,1117,1059,1519,2170,2004,2173,2004,2341,2505,2754,29972,29975,29983,29983]} 1. Nf3 {[%emt 0:00:09]} Nf6 {[%emt 0:00:24]} 2. c4 {[%emt 0:00:16]} c6 {[%emt 0:00:45]} 3. b3 {[%emt 0:01:55]} g6 {[%emt 0:03:39]} 4. Bb2 {[%emt 0:02:39]} Bg7 {[%emt 0:00:18]} 5. g3 {[%emt 0:01:03]} O-O {[%emt 0:02:47]} 6. Bg2 {[%emt 0:00:08]} d5 {[%emt 0:01:39]} 7. O-O {[%emt 0:00:21]} b6 {[%emt 0:09:19]} 8. d4 {[%emt 0:21:52] A11: English Opening: 1...c6.} Bb7 {[%emt 0:05:00]} 9. Nc3 {[%emt 0:02:00]} e6 {[%emt 0:10:45] The modern move.} 10. Qc2 {[%emt 0:03:01] White has an edge.} Qe7 {[%emt 0:08:49]} 11. Rfd1 {[%emt 0:18:23]} Nbd7 {[%emt 0:16:32]} 12. a4 {[%emt 0:08:48][%cal Ba2a4,Ba4a5,Ba5a6][%mdl 32]} Rfd8 {[%emt 0:09:15]} 13. a5 {[%emt 0:03:23] [#]} c5 $146 {[%emt 0:05:28]} ({Predecessor:} 13... dxc4 14. bxc4 c5 15. a6 Bxf3 16. Bxf3 cxd4 17. Nb5 e5 18. Bg2 Nc5 19. Ba3 Rab8 20. Bxc5 bxc5 {½-½ (46) Sales,G (2139)-Almeida,C (1905) Recife 2014}) 14. a6 $1 {[%emt 0:02:58]} Bc6 {[%emt 0:03:17]} 15. Ne5 $36 {[%emt 0:01:49][%mdl 2048] White is in control.} Nxe5 {[%emt 0:06:58]} 16. dxe5 {[%emt 0:00:24]} Ng4 {[%emt 0:00:31]} 17. cxd5 {[%emt 0:01:22]} exd5 {[%emt 0:00:19]} 18. Nxd5 {[%emt 0:01:23]} Bxd5 {[%emt 0:00:16]} 19. Bxd5 {[%emt 0:00:27]} Rab8 {[%emt 0:01:56]} 20. Ra4 $1 {[%emt 0:07:01][%cal Ba1a4,Ba4e4,Be4e7][%mdl 32]} Nxe5 {[%emt 0:00:52]} 21. Re4 {[%emt 0:09:08]} Qc7 {[%emt 0:01:12] [#]} 22. Bc3 {[%emt 0:03:30] This bishop pair is nice.} (22. f4 $1 $16 {[%cal Rf4e5]} Ng4 23. Bxg7 Kxg7 24. Qc3+ Nf6 25. g4 Rxd5 26. Rxd5) 22... Nc6 {[%emt 0:04:54]} ({Black should play} 22... Rd7 $1 $14) 23. Bxg7 $16 {[%emt 0:02:29] White is more active. Black is now going downhill.} Kxg7 {[%emt 0:00:06]} 24. Bxc6 {[%emt 0:05:17]} Qxc6 {[%emt 0:02:59] [#]} 25. Re7 $1 {[%emt 0:00:02]} Qf6 {[%emt 0:02:19]} (25... b5 $16 {was called for.}) 26. Rxa7 {[%emt 0:00:32] Black must now prevent Rb7.} Rxd1+ {[%emt 0:00:14]} 27. Qxd1 $18 {[%emt 0:00:05][%mdl 4096] Endgame Hoping for Rd7. KQR-KQR} Rd8 {[%emt 0:00:05]} (27... b5 $142 28. Qd5 Rb6 29. Qxc5 (29. Qa8 Qe6 $14) 29... Rxa6) 28. Qc1 {[%emt 0:01:34]} Qe6 {[%emt 0:00:53]} 29. Qc3+ {[%emt 0:00:57]} Kg8 $2 {[%emt 0:00:10]} (29... Qf6 30. Qxf6+ Kxf6) 30. Qc4 {[%emt 0:01:31]} Qxc4 {[%emt 0:00:55]} 31. bxc4 {[%emt 0:00:02] KR-KR} Rd1+ {[%emt 0:00:08]} 32. Kg2 {[%emt 0:00:03]} Ra1 {[%emt 0:00:07]} (32... Kg7 $142 33. Rb7 Ra1) 33. Kf3 {[%emt 0:00:43]} Ra4 {[%emt 0:00:29]} 34. Ra8+ {[%emt 0:00:19]} Kg7 {[%emt 0:00:07]} 35. a7 {[%emt 0:00:14]} Kf6 {[%emt 0:00:39]} 36. e4 {[%emt 0:01:50][%cal Be2e4,Be4e5][%mdl 32]} h5 {[%emt 0:00:42]} 37. e5+ {[%emt 0:00:40]} Kg7 {[%emt 0:00:15]} 38. Ke3 {[%emt 0:00:06]} h4 {[%emt 0:04:27]} 39. gxh4 {[%emt 0:00:29]} Kh7 40. f4 {[%emt 0:01:37][%cal Bf2f4,Bf4f5,Bf5f6][%mdl 32]} Kg7 {[%emt 0:01:00]} 41. h5 {[%emt 0:29:22] aiming for hxg6.} gxh5 {[%emt 0:27:44]} 42. f5 {[%emt 0:00:15] And now f6+ would win.} h4 {[%emt 0:03:16]} 43. f6+ {[%emt 0:01:53]} Kh7 {[%emt 0:00:00]} 44. e6 {[%emt 0:00:00] Weighted Error Value: White=0.13 (very precise) /Black=0.67} 1-0